fUST/lending_fUST_20250508
["ID","MTS","AMOUNT","RATE_DAILY","PERIOD"]
[360272434,1746687040470,-360.0,0.00010858,2]
[360272435,1746687040479,-360.0,0.00010858,2]
[360272437,1746687040488,-360.0,0.00010858,2]
[360272440,1746687040498,-360.0,0.00010858,2]
[360272441,1746687040507,-360.0,0.00010858,2]
[360272444,1746687040518,-320.0,0.00010858,2]
[360272446,1746687040528,-360.0,0.00010858,2]
[360272448,1746687040537,-320.0,0.00010858,2]
[360272450,1746687040546,-320.0,0.00010858,2]
[360272452,1746687040556,-320.0,0.00010858,2]
[360272454,1746687040566,-320.0,0.00010858,2]
[360272456,1746687040575,-320.0,0.00010858,2]
[360272457,1746687040585,-479.39665784,0.00010858,2]
[360272460,1746687040594,-360.0,0.00010858,2]
[360272461,1746687040604,-360.0,0.00010858,2]
[360272463,1746687040614,-360.0,0.00010858,2]
[360272466,1746687040623,-360.0,0.00010858,2]
[360272468,1746687040633,-360.0,0.00010858,2]
[360272469,1746687040643,-320.0,0.00010858,2]
[360272472,1746687040652,-360.0,0.00010858,2]
[360272474,1746687040662,-360.0,0.00010858,2]
[360272476,1746687040671,-360.0,0.00010858,2]
[360272478,1746687040682,-320.0,0.00010858,2]
[360272480,1746687040692,-320.0,0.00010858,2]
[360272482,1746687040702,-470.6681338,0.00010858,2]
[360272484,1746687040712,-320.0,0.00010858,2]
[360272486,1746687040721,-206.167349,0.00010958,2]
[360272488,1746687040731,-406.85782703,0.00010958,2]
[360272490,1746687040740,-407.84132516,0.00010958,2]
[360272492,1746687040750,-400.0,0.00010958,2]
[360272494,1746687040762,-406.63869199,0.00010958,2]
[360272496,1746687040772,-489.28,0.00010958,2]
[360272498,1746687040782,-402.95624509,0.00010958,2]
[360272500,1746687040795,-507.46657699,0.00010958,2]
[360272502,1746687040806,-400.0,0.00010958,2]
[360272504,1746687040816,-406.11677274,0.00010958,2]
[360272506,1746687040826,-402.13722882,0.00010958,2]
[360272509,1746687040837,-502.90246091,0.00010958,2]
[360272511,1746687040846,-403.63666294,0.00010958,2]
[360272512,1746687040858,-400.0,0.00010958,2]
[360272515,1746687040868,-247.68140105,0.00010958,2]
[360272517,1746687040878,-400.0,0.00010958,2]
[360272519,1746687040888,-400.0,0.00010958,2]
[360272521,1746687040898,-400.0,0.00010958,2]
[360272522,1746687040908,-495.05,0.00010958,2]
[360272525,1746687040918,-403.39,0.00010958,2]
[360272526,1746687040927,-400.0,0.00010958,2]
[360272528,1746687040938,-400.0,0.00010958,2]
[360272530,1746687040948,-400.0,0.00010958,2]
[360272532,1746687040958,-400.0,0.00010958,2]
[360272534,1746687040968,-400.0,0.00010958,2]
[360272537,1746687040977,-400.0,0.00010958,2]
[360272539,1746687040986,-400.0,0.00010958,2]
[360272541,1746687040996,-400.0,0.00010958,2]
[360272542,1746687041006,-581.21,0.00010958,2]
[360272545,1746687041017,-400.0,0.00010958,2]
[360272547,1746687041028,-553.15,0.00010958,2]
[360272548,1746687041038,-400.0,0.00010958,2]
[360272550,1746687041050,-400.0,0.00010958,2]
[360272553,1746687041060,-400.0,0.00010958,2]
[360272555,1746687041071,-400.0,0.00010958,2]
[360272557,1746687041081,-532.69,0.00010958,2]
[360272559,1746687041090,-417.02,0.00010958,2]
[360272561,1746687041102,-1410.38,0.00010958,2]
[360272563,1746687041112,-476.73267687,0.00010958,2]
[360272565,1746687041121,-316.3626951,0.00010958,2]
[360272568,1746687041146,-407.1173049,0.00010958,2]
[360272570,1746687041155,-502.75030629,0.00010958,2]
[360272572,1746687041165,-400.0,0.00010958,2]
[360272574,1746687041175,-400.0,0.00010958,2]
[360272576,1746687041185,-400.0,0.00010958,2]
[360272578,1746687041196,-400.0,0.00010958,2]
[360272581,1746687041206,-500.0,0.00010958,2]
[360272583,1746687041215,-500.0,0.00010958,2]
[360272605,1746687041421,-400.0,0.00010958,2]
[360272607,1746687041431,-730.05,0.00010958,2]
[360272609,1746687041441,-400.0,0.00010958,2]
[360272611,1746687041450,-225.98208195,0.00010958,2]
[360272802,1746687043215,-469.05052768,0.00010958,2]
[360272805,1746687043228,-149.30739037,0.00010958,2]
[360272807,1746687043239,-400.0,0.00010958,2]
[360272808,1746687043250,-400.0,0.00010958,2]
[360272810,1746687043260,-407.7052638,0.00010958,2]
[360272812,1746687043270,-400.0,0.00010958,2]
[360272814,1746687043279,-400.0,0.00010958,2]
[360272816,1746687043288,-400.0,0.00010958,2]
[360272818,1746687043299,-400.0,0.00010958,2]
[360272820,1746687043308,-400.96,0.00010958,2]
[360272823,1746687043317,-400.0,0.00010958,2]
[360272825,1746687043328,-400.0,0.00010958,2]
[360272828,1746687043338,-400.0,0.00010958,2]
[360272831,1746687043347,-400.0,0.00010958,2]
[360272834,1746687043357,-1322.0,0.00010958,2]
[360272836,1746687043366,-400.0,0.00010958,2]
[360272838,1746687043376,-400.0,0.00010958,2]
[360272840,1746687043386,-400.0,0.00010958,2]
[360272841,1746687043396,-400.0,0.00010958,2]
[360272843,1746687043406,-400.0,0.00010958,2]
[360272845,1746687043416,-400.0,0.00010958,2]
[360272847,1746687043426,-489.57,0.00010958,2]
[360272849,1746687043435,-400.0,0.00010958,2]
[360272851,1746687043444,-400.0,0.00010958,2]
[360272853,1746687043453,-400.0,0.00010958,2]
[360272855,1746687043463,-977.87,0.00010958,2]
[360272857,1746687043472,-252.87909812,0.00010958,2]
[360272859,1746687043482,-477.96,0.00010958,2]
[360272861,1746687043491,-400.0,0.00010958,2]
[360272863,1746687043500,-2356.90038535,0.00010958,2]
[360272891,1746687046114,-363.89961465,0.00010958,2]
[360272892,1746687046125,-400.0,0.00010958,2]
[360272893,1746687046135,-400.0,0.00010958,2]
[360272894,1746687046146,-400.0,0.00010958,2]
[360272895,1746687046156,-302.27455169,0.00010958,2]
[360272896,1746687046166,-2852.83,0.00010958,2]
[360272897,1746687046177,-400.0,0.00010958,2]
[360272898,1746687046187,-500.78,0.00010958,2]
[360272899,1746687046196,-400.0,0.00010958,2]
[360272900,1746687046205,-400.0,0.00010958,2]
[360272901,1746687046214,-179.32136372,0.00010958,2]
[360272902,1746687046227,-990.12863628,0.00010958,2]
[360272903,1746687046237,-967.49,0.00010958,2]
[360272904,1746687046249,-400.0,0.00010958,2]
[360272905,1746687046265,-400.0,0.00010958,2]
[360272906,1746687046274,-400.0,0.00010958,2]
[360272907,1746687046284,-400.0,0.00010958,2]
[360272908,1746687046294,-400.0,0.00010958,2]
[360272909,1746687046303,-603.14,0.00010958,2]
[360272910,1746687046314,-400.0,0.00010958,2]
[360272911,1746687046327,-1062.22,0.00010958,2]
[360272912,1746687046338,-400.0,0.00010958,2]
[360272913,1746687046348,-400.0,0.00010958,2]
[360272914,1746687046359,-400.0,0.00010958,2]
[360272915,1746687046368,-400.0,0.00010958,2]
[360272916,1746687046378,-1233.68,0.00010958,2]
[360272917,1746687046387,-400.0,0.00010958,2]
[360272918,1746687046397,-400.0,0.00010958,2]
[360272919,1746687046407,-400.0,0.00010958,2]
[360272920,1746687046418,-400.0,0.00010958,2]
[360272921,1746687046427,-704.13,0.00010958,2]
[360272922,1746687046436,-400.0,0.00010958,2]
[360272923,1746687046446,-763.03,0.00010958,2]
[360272924,1746687046455,-400.0,0.00010958,2]
[360272925,1746687046464,-400.0,0.00010958,2]
[360272926,1746687046473,-516.57,0.00010958,2]
[360272927,1746687046483,-400.0,0.00010958,2]
[360272928,1746687046492,-912.31,0.00010958,2]
[360272929,1746687046502,-812.02,0.00010958,2]
[360272930,1746687046512,-806.03,0.00010958,2]
[360272931,1746687046521,-400.0,0.00010958,2]
[360272932,1746687046531,-122.89628579,0.00010958,2]
[360272933,1746687046543,-505.47371421,0.00010958,2]
[360272934,1746687046552,-999.62197679,0.00010958,2]
[360272935,1746687046570,-1056.33802321,0.00010958,2]
[360272936,1746687046580,-763.36,0.00010958,2]
[360272937,1746687046590,-2411.69,0.00010958,2]
[360272938,1746687046599,-568.03,0.00010958,2]
[360272939,1746687046610,-400.0,0.00010958,2]
[360272940,1746687046619,-400.0,0.00010958,2]
[360272941,1746687046629,-400.0,0.00010958,2]
[360272942,1746687046638,-739.6,0.00010958,2]
[360272943,1746687046648,-400.0,0.00010958,2]
[360272944,1746687046657,-695.57,0.00010958,2]
[360272945,1746687046666,-400.0,0.00010958,2]
[360272946,1746687046676,-410.95,0.00010958,2]
[360272947,1746687046685,-400.0,0.00010958,2]
[360272948,1746687046694,-638.9,0.00010958,2]
[360272949,1746687046704,-400.0,0.00010958,2]
[360272950,1746687046714,-400.0,0.00010958,2]
[360272951,1746687046723,-484.59,0.00010958,2]
[360272952,1746687046732,-400.0,0.00010958,2]
[360272953,1746687046742,-400.0,0.00010958,2]
[360272954,1746687046752,-400.0,0.00010958,2]
[360272955,1746687046762,-400.0,0.00010958,2]
[360272956,1746687046772,-967.26,0.00010958,2]
[360272957,1746687046782,-526.84,0.00010958,2]
[360272958,1746687046793,-400.0,0.00010958,2]
[360272959,1746687046802,-721.53,0.00010958,2]
[360272960,1746687046812,-477.69,0.00010958,2]
[360272961,1746687046822,-400.0,0.00010958,2]
[360272962,1746687046832,-798.78,0.00010958,2]
[360272963,1746687046842,-400.0,0.00010958,2]
[360272964,1746687046852,-400.0,0.00010958,2]
[360272965,1746687046861,-216.65837269,0.00010958,2]
[360272966,1746687046871,-1382.50814955,0.00010958,2]
[360272978,1746687638258,24900.0,9.732e-05,2]
[360273027,1746688232305,-159.8,0.00010651,2]
[360273028,1746688232316,-348.0839975,0.00010652,2]
[360273030,1746688232326,-207.4,0.00010652,2]
[360273031,1746688232336,-151.0,0.00010652,2]
[360273033,1746688232346,-300.0,0.00010656,2]
[360273035,1746688232357,-1200.0,0.00010656,2]
[360273036,1746688232366,-181.00992784,0.00010657,2]
[360273037,1746688232376,-564.12141581,0.00010657,2]
[360273038,1746688232385,-500.0,0.00010657,2]
[360273039,1746688232395,-500.0,0.00010657,2]
[360273040,1746688232405,-571.59187879,0.00010657,2]
[360273041,1746688232415,-500.0,0.00010657,2]
[360273042,1746688232424,-500.0,0.00010657,2]
[360273043,1746688232433,-500.0,0.00010657,2]
[360273044,1746688232443,-500.0,0.00010657,2]
[360273045,1746688232452,-500.0,0.00010657,2]
[360273046,1746688232461,-500.0,0.00010657,2]
[360273047,1746688232472,-616.56947858,0.00010657,2]
[360273048,1746688232482,-616.56947858,0.00010657,2]
[360273049,1746688232494,-616.56947858,0.00010657,2]
[360273050,1746688232504,-616.56947858,0.00010657,2]
[360273051,1746688232515,-616.56947858,0.00010657,2]
[360273052,1746688232526,-616.56947858,0.00010657,2]
[360273053,1746688232536,-14659.63664129,0.00010658,2]
[360273102,1746688239124,-2691.85691988,0.00010658,2]
[360273656,1746688246381,-2176.49978,0.00010658,2]
[360273657,1746688246393,-1507.0000002,0.00010658,2]
[360273671,1746688403202,-250.0,0.00010558,2]
[360273693,1746688708806,250.0,9.987e-05,2]
[360273694,1746688736954,10697.4947366,9.987e-05,2]
[360273721,1746689273101,351.19596078,0.0001,2]
[360273775,1746689432462,-334.97913401,0.00010549,2]
[360273776,1746689432473,-187.94750577,0.00010552,2]
[360273777,1746689432483,-300.0,0.00010555,2]
[360273778,1746689432493,-24.55254882,0.00010555,2]
[360273850,1746689438771,-490.51777302,0.00010555,2]
[360273851,1746689438783,-684.92967816,0.00010555,2]
[360273852,1746689438792,-394.88499106,0.00010557,2]
[360273853,1746689438801,-500.0,0.00010557,2]
[360273854,1746689438811,-566.98424932,0.00010557,2]
[360273855,1746689438820,-12.78461586,0.00010557,2]
[360273856,1746689438832,-487.21538414,0.00010557,2]
[360273857,1746689438842,-616.56947858,0.00010557,2]
[360273858,1746689438852,-616.56947858,0.00010557,2]
[360273859,1746689438861,-616.56947858,0.00010557,2]
[360273860,1746689438871,-616.56947858,0.00010557,2]
[360273861,1746689438880,-616.56947858,0.00010557,2]
[360273862,1746689438890,-616.56947858,0.00010557,2]
[360273863,1746689438900,-485.30742888,0.00010557,2]
[360274059,1746689442672,-171.89334157,0.0001054,7]
[360274339,1746689446488,-6042.8999995,0.0001054,7]
[360274387,1746689453476,-459.00829598,0.0001054,7]
[360274388,1746689468255,-300.0,0.0001054,7]
[360274390,1746689483229,-278.9830732,0.0001054,7]
[360274391,1746689498299,-880.95639914,0.0001054,7]
[360274392,1746689513286,-227.90986885,0.0001054,7]
[360274393,1746689528265,-272.09013115,0.0001054,7]
[360274394,1746689543251,-500.0,0.0001054,7]
[360274395,1746689558276,-62.02646491,0.0001054,7]
[360274396,1746689593198,-196.48155407,0.00010456,2]
[360274397,1746689603215,-250.0,0.00010456,2]
[360274398,1746689609302,-300.0,0.00010456,2]
[360274399,1746689619411,-414.94220769,0.00010456,2]
[360274400,1746689619434,-59.6089496,0.00010482,2]
[360274401,1746689633282,-222.6461932,0.00010482,2]
[360274402,1746689648304,-300.0,0.00010482,2]
[360274403,1746689663257,-579.16861894,0.00010482,2]
[360274404,1746689663282,-199.59730021,0.00010507,2]
[360274405,1746689678352,-275.0297775,0.00010455,2]
[360274406,1746689693260,-67.69479428,0.00010455,2]
[360274407,1746689693298,-211.28827892,0.00010455,2]
[360274408,1746689708300,-300.0,0.00010454,2]
[360274409,1746689708338,-87.18119487,0.00010455,2]
[360274410,1746689723256,-300.0,0.00010454,2]
[360274411,1746689763337,-300.0,0.00010454,2]
[360274413,1746689768314,-600.0,0.00010454,2]
[360274414,1746689768338,-300.0,0.00010454,2]
[360274415,1746689768364,-164.01665553,0.00010454,2]
[360274420,1746689783257,-135.98334447,0.00010454,2]
[360274421,1746689783280,-72.63897295,0.00010455,2]
[360274426,1746689798836,-220.56302082,0.00010454,2]
[360274429,1746689813337,-250.0,0.00010454,2]
[360274430,1746689828846,-151.95138724,0.00010453,2]
[360274431,1746689843279,-148.04861276,0.00010453,2]
[360274432,1746689843303,-14.29667308,0.00010454,2]
[360274433,1746689859376,-57.82844338,0.00010454,2]
[360274434,1746689859399,-192.17155662,0.00010454,2]
[360274435,1746689873262,-55.21929668,0.00010454,2]
[360274436,1746689873299,-197.38985002,0.00010454,2]
[360274437,1746689889016,-163.3935257,0.00010453,2]
[360274438,1746689893100,189.37017472,9.954e-05,5]
[360274439,1746689903429,-136.6064743,0.00010453,2]
[360274440,1746689903467,-37.19868441,0.00010454,2]
[360274441,1746689918853,-162.34528584,0.00010453,2]
[360274442,1746689918879,-137.65471416,0.00010453,2]
[360274443,1746689943928,-300.0,0.00010452,2]
[360274446,1746689950600,-414.19848962,0.00010453,2]
[360274447,1746689950626,-220.56302082,0.00010453,2]
[360274448,1746689950651,-49.3395009,0.00010453,2]
[360274450,1746689963291,-154.87321133,0.00010453,2]
[360274452,1746689979340,-249.81518692,0.00010453,2]
[360274453,1746689993729,-95.31160175,0.00010453,2]
[360274454,1746689993757,-117.38876363,0.00010453,2]
[360274455,1746690008760,-151.0,0.0001045,2]
[360274456,1746690008786,-47.51022503,0.00010452,2]
[360274459,1746690087822,12459.4338645,9.466e-05,2]
[360274460,1746690087847,12440.5661355,9.466e-05,2]
[360274468,1746690257518,-250.0,0.00010351,2]
[360274469,1746690263226,-250.0,0.00010351,2]
[360274470,1746690265539,-250.0,0.00010351,2]
[360274471,1746690278258,-197.29073746,0.00010351,2]
[360274472,1746690278282,-802.70926254,0.00010363,2]
[360274473,1746690293338,-216.79066204,0.00010351,2]
[360274474,1746690308290,-33.20933796,0.00010351,2]
[360274475,1746690308313,-125.53903566,0.00010363,2]
[360274480,1746690323201,-19.04243923,0.00010363,2]
[360274482,1746690323226,-212.47105966,0.00010376,2]
[360274486,1746690338245,-221.54505531,0.00010376,2]
[360274487,1746690344609,221.54505531,0.00010205,2]
[360274488,1746690353359,-178.45494469,0.00010351,2]
[360274490,1746690360596,178.45494469,0.00010205,2]
[360274491,1746690368323,-246.67670273,0.00010351,2]
[360274497,1746690383936,-186.86794338,0.00010351,2]
[360274498,1746690398797,-252.52822648,0.00010351,2]
[360274499,1746690414094,-196.24461118,0.00010276,2]
[360274500,1746690428383,-53.75538882,0.00010276,2]
[360274501,1746690428407,-135.47218272,0.00010351,2]
[360274502,1746690428432,-40.70733483,0.00010376,2]
[360274506,1746690440141,390.26187251,0.00010176,2]
[360274507,1746690443928,-173.68154185,0.00010376,2]
[360274514,1746690596830,-173.68154185,0.00010348,2]
[360274515,1746690608313,-308.37003471,0.00010348,2]
[360274516,1746690608336,-123.08253698,0.00010354,2]
[360274520,1746690623276,-212.70036538,0.00010354,2]
[360274579,1746690632664,-146.26867417,0.00010354,2]
[360274582,1746690632674,-482.05157653,0.00010361,2]
[360274585,1746690632683,-482.05157653,0.00010367,2]
[360274588,1746690632693,-482.05157653,0.00010373,2]
[360274591,1746690632702,-300.0,0.00010447,2]
[360274594,1746690632711,-1200.0,0.00010447,2]
[360274596,1746690632720,-300.0,0.00010447,2]
[360274597,1746690632729,-500.0,0.00010448,2]
[360274599,1746690632739,-500.0,0.00010448,2]
[360274601,1746690632747,-500.0,0.00010448,2]
[360274603,1746690632757,-500.0,0.00010448,2]
[360274605,1746690632766,-500.0,0.00010448,2]
[360274607,1746690632776,-500.0,0.00010448,2]
[360274609,1746690632785,-500.0,0.00010448,2]
[360274611,1746690632795,-500.0,0.00010448,2]
[360274613,1746690632805,-500.0,0.00010448,2]
[360274615,1746690632814,-500.0,0.00010448,2]
[360274617,1746690632823,-500.0,0.00010448,2]
[360274619,1746690632833,-500.0,0.00010448,2]
[360274620,1746690632842,-500.0,0.00010448,2]
[360274621,1746690632851,-500.0,0.00010448,2]
[360274623,1746690632864,-500.0,0.00010448,2]
[360274625,1746690632874,-500.0,0.00010448,2]
[360274627,1746690632882,-500.0,0.00010448,2]
[360274629,1746690632892,-500.0,0.00010448,2]
[360274631,1746690632902,-500.0,0.00010448,2]
[360274633,1746690632911,-500.0,0.00010448,2]
[360274634,1746690632921,-500.0,0.00010448,2]
[360274635,1746690632931,-500.0,0.00010448,2]
[360274636,1746690632940,-500.0,0.00010448,2]
[360274637,1746690632949,-500.0,0.00010448,2]
[360274638,1746690632958,-500.0,0.00010448,2]
[360274639,1746690632968,-500.0,0.00010448,2]
[360274640,1746690632978,-500.0,0.00010448,2]
[360274641,1746690632987,-500.0,0.00010448,2]
[360274642,1746690632996,-252.6091467,0.00010448,2]
[360274643,1746690633006,-1005.04954727,0.00010448,2]
[360274644,1746690633015,-1005.04954727,0.00010448,2]
[360274645,1746690633024,-1005.04954727,0.00010448,2]
[360274646,1746690633034,-1005.04954727,0.00010448,2]
[360274647,1746690633044,-1005.04954727,0.00010448,2]
[360274648,1746690633054,-1005.04954727,0.00010448,2]
[360274649,1746690633063,-1005.04954727,0.00010448,2]
[360274650,1746690633073,-1005.04954727,0.00010448,2]
[360274651,1746690633082,-1005.04954727,0.00010448,2]
[360274652,1746690633091,-1005.04954727,0.00010448,2]
[360274653,1746690633101,-1005.04954727,0.00010448,2]
[360274654,1746690633112,-1005.04954727,0.00010448,2]
[360274655,1746690633122,-1005.04954727,0.00010448,2]
[360274656,1746690633131,-1005.04954727,0.00010448,2]
[360274657,1746690633141,-1005.04954727,0.00010448,2]
[360274658,1746690633152,-1005.04954727,0.00010448,2]
[360274659,1746690633161,-1005.04954727,0.00010448,2]
[360274660,1746690633171,-1005.04954727,0.00010448,2]
[360274661,1746690633180,-1005.04954727,0.00010448,2]
[360274662,1746690633189,-1005.04954727,0.00010448,2]
[360274663,1746690633199,-1005.04954727,0.00010448,2]
[360274664,1746690633208,-1005.04954727,0.00010448,2]
[360274665,1746690633217,-1005.04954727,0.00010448,2]
[360274666,1746690633227,-1005.04954727,0.00010448,2]
[360274667,1746690633236,-1005.04954727,0.00010448,2]
[360274668,1746690633245,-1005.04954727,0.00010448,2]
[360274669,1746690633254,-988.29872149,0.00010448,2]
[360274670,1746690633264,-988.29872149,0.00010448,2]
[360274671,1746690633273,-988.29872149,0.00010448,2]
[360274672,1746690633282,-988.29872149,0.00010448,2]
[360274673,1746690633292,-988.29872149,0.00010448,2]
[360274674,1746690633301,-988.29872149,0.00010448,2]
[360274675,1746690633311,-988.29872149,0.00010448,2]
[360274676,1746690633320,-988.29872149,0.00010448,2]
[360274677,1746690633330,-988.29872149,0.00010448,2]
[360274678,1746690633339,-988.29872149,0.00010448,2]
[360274679,1746690633348,-988.29872149,0.00010448,2]
[360274680,1746690633358,-988.29872149,0.00010448,2]
[360274681,1746690633367,-988.29872149,0.00010448,2]
[360274682,1746690633377,-988.29872149,0.00010448,2]
[360274683,1746690633387,-988.29872149,0.00010448,2]
[360274684,1746690633396,-988.29872149,0.00010448,2]
[360274685,1746690633406,-988.29872149,0.00010448,2]
[360274686,1746690633415,-988.29872149,0.00010448,2]
[360274687,1746690633424,-988.29872149,0.00010448,2]
[360274688,1746690633434,-988.29872149,0.00010448,2]
[360274689,1746690633444,-988.29872149,0.00010448,2]
[360274690,1746690633454,-988.29872149,0.00010448,2]
[360274691,1746690633463,-988.29872149,0.00010448,2]
[360274692,1746690633473,-988.29872149,0.00010448,2]
[360274693,1746690633483,-988.29872149,0.00010448,2]
[360274694,1746690633492,-988.29872149,0.00010448,2]
[360274695,1746690633501,-988.29872149,0.00010448,2]
[360274696,1746690633511,-988.29872149,0.00010448,2]
[360274697,1746690633523,-988.29872149,0.00010448,2]
[360274698,1746690633533,-988.29872149,0.00010448,2]
[360274699,1746690633542,-988.29872149,0.00010448,2]
[360274700,1746690633551,-988.29872149,0.00010448,2]
[360274701,1746690633561,-988.29872149,0.00010448,2]
[360274702,1746690633570,-988.29872149,0.00010448,2]
[360274703,1746690633579,-988.29872149,0.00010448,2]
[360274704,1746690633589,-988.29872147,0.00010448,2]
[360274705,1746690633599,-500.0,0.00010449,2]
[360274706,1746690633608,-151.0,0.0001045,2]
[360274707,1746690633619,-212.91375984,0.00010455,2]
[360274708,1746690633629,-626.06453159,0.00010455,2]
[360274709,1746690633638,-370000.0,0.00010456,2]
[360274710,1746690633647,-500.0,0.00010473,2]
[360274711,1746690633657,-500.0,0.00010473,2]
[360274712,1746690633666,-201.21419571,0.00010473,2]
[360274713,1746690633676,-500.47755273,0.00010473,2]
[360274714,1746690633686,-501.96921947,0.00010473,2]
[360274715,1746690633695,-500.0,0.00010473,2]
[360274716,1746690633705,-501.00417817,0.00010473,2]
[360274717,1746690633715,-501.64738125,0.00010473,2]
[360274718,1746690633725,-500.0,0.00010473,2]
[360274719,1746690633734,-500.48568278,0.00010473,2]
[360274720,1746690633744,-501.44848848,0.00010473,2]
[360274721,1746690633754,-500.88466919,0.00010473,2]
[360274722,1746690633763,-500.0,0.00010473,2]
[360274723,1746690633773,-500.0,0.00010473,2]
[360274724,1746690633782,-500.0,0.00010473,2]
[360274725,1746690633792,-500.0,0.00010473,2]
[360274726,1746690633801,-250.0,0.000105,2]
[360274727,1746690633811,-250.0,0.000105,2]
[360274728,1746690633821,-250.0,0.000105,2]
[360274729,1746690633830,-250.0,0.000105,2]
[360274730,1746690633839,-250.0,0.000105,2]
[360274731,1746690633849,-250.0,0.000105,2]
[360274732,1746690633861,-250.0,0.000105,2]
[360274733,1746690633871,-250.0,0.000105,2]
[360274734,1746690633880,-250.0,0.000105,2]
[360274735,1746690633891,-277.1,0.000105,2]
[360274736,1746690633900,-251.99943557,0.00010507,2]
[360274737,1746690633910,-320.0,0.00010557,2]
[360274738,1746690633920,-320.0,0.00010557,2]
[360274739,1746690633929,-320.0,0.00010557,2]
[360274740,1746690633939,-320.0,0.00010557,2]
[360274741,1746690633950,-320.0,0.00010557,2]
[360274742,1746690633960,-320.0,0.00010557,2]
[360274743,1746690633971,-320.0,0.00010557,2]
[360274744,1746690633981,-320.0,0.00010557,2]
[360274745,1746690633992,-320.0,0.00010557,2]
[360274746,1746690634002,-320.0,0.00010557,2]
[360274747,1746690634012,-320.0,0.00010557,2]
[360274748,1746690634022,-320.0,0.00010557,2]
[360274749,1746690634032,-320.0,0.00010557,2]
[360274750,1746690634042,-320.0,0.00010557,2]
[360274751,1746690634052,-320.0,0.00010557,2]
[360274752,1746690634062,-360.0,0.00010557,2]
[360274753,1746690634071,-360.0,0.00010557,2]
[360274754,1746690634081,-320.0,0.00010557,2]
[360274755,1746690634090,-360.0,0.00010557,2]
[360274756,1746690634100,-320.0,0.00010557,2]
[360274757,1746690634109,-311.81196327,0.00010557,2]
[360274758,1746690634119,-320.0,0.00010557,2]
[360274759,1746690634128,-320.0,0.00010557,2]
[360274760,1746690634137,-320.0,0.00010557,2]
[360274761,1746690634147,-320.0,0.00010557,2]
[360274762,1746690634156,-320.0,0.00010557,2]
[360274763,1746690634166,-320.0,0.00010557,2]
[360274764,1746690634175,-152.0,0.00010609,2]
[360274765,1746690634185,-500.0,0.00010723,2]
[360274766,1746690634194,-622.61861332,0.00010726,2]
[360274767,1746690634204,-757.56982522,0.00010748,2]
[360274768,1746690634213,-192.0,0.00010847,2]
[360274769,1746690634399,-294.515245,0.00010958,2]
[360274770,1746690634410,-201.022741,0.00010958,2]
[360274771,1746690634419,-201.022741,0.00010958,2]
[360274772,1746690634430,-201.022741,0.00010958,2]
[360274773,1746690634440,-155.089189,0.00010958,2]
[360274774,1746690634450,-201.022741,0.00010958,2]
[360274775,1746690634459,-201.022741,0.00010958,2]
[360274776,1746690634470,-201.022741,0.00010958,2]
[360274777,1746690634479,-151.0,0.00010958,2]
[360274778,1746690634489,-151.0,0.00010958,2]
[360274779,1746690634498,-151.0,0.00010958,2]
[360274780,1746690634508,-154.093673,0.00010958,2]
[360274781,1746690634518,-151.0,0.00010958,2]
[360274782,1746690634528,-151.0,0.00010958,2]
[360274783,1746690634538,-151.0,0.00010958,2]
[360274784,1746690634548,-151.0,0.00010958,2]
[360274785,1746690634557,-151.0,0.00010958,2]
[360274786,1746690634567,-151.0,0.00010958,2]
[360274787,1746690634576,-151.0,0.00010958,2]